bitfinex-derivatives/quotes_BTCF0:USTF0_20251125
["timestamp","ask_amount","ask_price","bid_price","bid_amount"]
[1764083928868,0.257959,86628.0,86627.0,0.00017311]
[1764083929072,0.617959,86628.0,86627.0,0.00017311]
[1764083930057,0.60177521,86628.0,86627.0,0.00017311]
[1764083930563,0.60177521,86628.0,86619.0,0.3608]
[1764083930564,0.2579601,86620.0,86619.0,0.3608]
[1764083930770,0.6979601,86620.0,86619.0,0.3608]
[1764083931568,0.4515501,86620.0,86619.0,0.60438]
[1764083931763,0.0115496,86624.0,86623.0,0.12176]
[1764083931958,0.2579601,86620.0,86619.0,0.3608]
[1764083932160,0.015949,86628.0,86627.0,0.24358]
[1764083932479,0.445949,86628.0,86627.0,0.24358]
[1764083932673,0.24641,86627.0,86626.0,0.3608]
[1764083932965,0.0044,86628.0,86627.0,0.24358]
[1764083933271,0.00017311,86644.0,86643.0,0.255127]
[1764083933456,0.37017311,86644.0,86643.0,0.255127]
[1764083933659,0.00017311,86644.0,86643.0,0.255127]
[1764083934466,0.00017311,86644.0,86643.0,0.31708741]
[1764083934665,0.00017311,86644.0,86643.0,0.255127]
[1764083935269,0.00017311,86644.0,86643.0,0.30553137]
[1764083935469,0.00017311,86644.0,86643.0,0.24358]
[1764083935669,0.00017311,86644.0,86643.0,0.24458]
[1764083936065,0.00017311,86644.0,86643.0,0.24558]
[1764083938067,0.0115445,86662.0,86648.0,0.24358]
[1764083938265,0.0115459,86652.0,86651.0,0.3608]
[1764083938472,0.3815459,86652.0,86651.0,0.5442]
[1764083938677,0.3815459,86652.0,86651.0,0.66596]
[1764083938973,0.37,86652.0,86651.0,0.78778]
[1764083939379,0.0115453,86656.0,86655.0,0.24358]
[1764083939563,0.3915453,86656.0,86655.0,0.2551254]
[1764083939761,0.3915453,86656.0,86655.0,0.24358]
[1764083939974,0.6379553,86656.0,86655.0,0.12176]
[1764083940274,0.0115457,86653.0,86652.0,0.2551255]
[1764083940464,0.24641,86652.0,86649.0,0.06198231]
[1764083940662,0.2579575,86639.0,86638.0,0.5442]
[1764083940863,0.6579575,86639.0,86638.0,0.5442]
[1764083941066,0.4115475,86639.0,86638.0,0.78778]
[1764083941471,0.24641,86637.0,86636.0,0.06198231]
[1764083941673,0.2579579,86636.0,86635.0,0.00017311]
[1764083941971,0.24641,86624.0,86623.0,0.1834]
[1764083942167,0.24641,86624.0,86607.0,0.0115517]
[1764083942168,0.257961,86613.0,86612.0,1e-08]
[1764083942368,0.257961,86613.0,86594.0,0.5047198]
[1764083942369,0.2579615,86609.0,86594.0,0.3608]
[1764083942566,0.7279615,86609.0,86594.0,0.3608]
[1764083942967,0.9879615,86609.0,86600.0,0.00017311]
[1764083943370,0.6979615,86609.0,86600.0,0.00017311]
[1764083943570,0.6879615,86609.0,86600.0,0.00017311]
[1764083943761,0.67641,86609.0,86604.0,0.0115521]
[1764083943960,0.67641,86609.0,86600.0,0.00017311]
[1764083943961,0.5595,86609.0,86608.0,0.12190708]
[1764083944174,0.00017311,86617.0,86616.0,0.2551306]
[1764083944370,0.0115468,86645.0,86619.0,0.0115502]
[1764083944574,0.38,86645.0,86638.0,0.0115476]
[1764083944872,0.0115473,86641.0,86636.0,0.2551279]
[1764083945072,0.43,86641.0,86636.0,0.2551279]
[1764083945271,0.3608,86659.0,86636.0,0.3608]
[1764083945471,0.00017311,86647.0,86646.0,0.2551266]
[1764083945674,0.43017311,86647.0,86646.0,0.24358]
[1764083946077,0.00017311,86647.0,86646.0,0.2551266]
[1764083946373,0.41017311,86647.0,86646.0,0.2551266]
[1764083946966,0.01017311,86647.0,86646.0,0.2551266]
[1764083947268,0.3608,86669.0,86660.0,0.0115447]
[1764083947269,0.01594211,86665.0,86660.0,0.0115447]
[1764083947573,0.0115448,86660.0,86656.0,0.0115451]
[1764083947769,0.44,86660.0,86659.0,0.1261249]
[1764083947967,0.00439801,86665.0,86664.0,0.22709]
[1764083948163,0.42439801,86665.0,86664.0,0.22709]
[1764083948474,0.00439801,86665.0,86664.0,0.22709]
[1764083948666,0.12439801,86665.0,86664.0,0.22709]
[1764083948868,0.00439801,86665.0,86664.0,0.22709]
[1764083951079,0.45439801,86665.0,86664.0,0.22709]
[1764083951461,0.00439801,86665.0,86664.0,0.22709]
[1764083951669,0.00439801,86665.0,86661.0,0.3608]
[1764083951670,0.61834801,86665.0,86661.0,0.3608]
[1764083951868,0.39439801,86665.0,86662.0,0.1949445]
[1764083952074,0.38594211,86665.0,86664.0,0.22752]
[1764083952270,0.38594211,86665.0,86661.0,0.3608]
[1764083952271,0.2354945,86662.0,86661.0,0.3608]
[1764083952479,0.2354945,86662.0,86661.0,0.58832]
[1764083952480,0.4,86662.0,86661.0,0.58832]
[1764083952772,0.0115442,86664.0,86661.0,0.3608]
[1764083952977,0.3815442,86664.0,86661.0,0.3608]
[1764083953168,0.3815442,86664.0,86663.0,0.11703]
[1764083953370,0.3815442,86664.0,86663.0,0.22752]
[1764083953968,0.011545,86658.0,86656.0,0.00017311]
[1764083954179,0.2354967,86645.0,86644.0,0.3608]
[1764083954472,0.2354967,86645.0,86628.0,0.10279986]
[1764083954473,0.0115489,86629.0,86628.0,0.3608]
[1764083954781,0.3815489,86629.0,86628.0,0.3608]
[1764083954973,0.4904789,86629.0,86628.0,0.3608]
[1764083955273,0.4904789,86629.0,86620.0,0.00017311]
[1764083955274,0.0115499,86621.0,86620.0,0.00017311]
[1764083955479,0.4515499,86621.0,86620.0,0.00017311]
[1764083955778,0.4515499,86621.0,86620.0,0.22769311]
[1764083955972,0.6754999,86621.0,86620.0,0.00017311]
[1764083957976,0.0115499,86621.0,86620.0,0.00017311]
[1764083958274,0.6554999,86621.0,86620.0,0.00017311]
[1764083958481,1.0254999,86621.0,86620.0,0.00017311]
[1764083959275,0.7254999,86621.0,86620.0,0.00017311]
[1764083959480,0.22395,86609.0,86608.0,0.00014708]
[1764083959677,0.1204838,86592.0,86591.0,0.3608]
[1764083959870,0.5004838,86592.0,86591.0,0.3608]
[1764083960174,0.5004838,86592.0,86591.0,0.5998739]
[1764083960175,0.38,86592.0,86591.0,0.5998739]
[1764083960677,0.38,86592.0,86591.0,0.58832]
[1764083960678,0.00013918,86592.0,86591.0,0.58832]
[1764083960978,0.00013918,86592.0,86591.0,0.98832]
[1764083961180,0.00017321,86600.0,86599.0,0.2390729]
[1764083961373,0.45017321,86600.0,86599.0,0.5998729]
[1764083961674,0.45017321,86600.0,86599.0,0.77172]
[1764083962274,0.45017321,86600.0,86599.0,0.77272]
[1764083962477,0.45017321,86600.0,86599.0,0.83464664]
[1764083962676,0.45017321,86600.0,86599.0,0.77272]
[1764083962874,0.45017321,86600.0,86599.0,0.83464664]
[1764083963075,0.45017321,86600.0,86599.0,0.83364664]
[1764083963272,0.45017321,86600.0,86599.0,0.77172]
[1764083963476,0.45017321,86600.0,86599.0,0.77272]
[1764083963678,0.0115506,86617.0,86616.0,0.11703]
[1764083963884,0.53893,86617.0,86614.0,0.0115509]
[1764083964271,0.0115506,86616.0,86614.0,0.0115509]
[1764083964475,0.37,86616.0,86615.0,0.22752]
[1764083964675,0.07001,86640.0,86615.0,0.18344]
[1764083964882,0.10893,86624.0,86623.0,0.47783]
[1764083965075,0.66395,86624.0,86623.0,0.3608]
[1764083965680,0.0115501,86621.0,86616.0,0.11703]
[1764083965878,0.45,86621.0,86616.0,0.11703]
[1764083966082,0.0115505,86617.0,86616.0,0.11703]
[1764083966274,0.4,86617.0,86616.0,0.11703]
[1764083966476,0.4,86617.0,86616.0,0.22752]
[1764083966779,0.0115493,86627.0,86626.0,0.11703]
[1764083966982,0.38,86627.0,86626.0,0.11703]
[1764083967674,0.38,86627.0,86626.0,0.22752]
[1764083967880,0.0115485,86632.0,86631.0,0.11049]
[1764083968082,0.00017321,86635.0,86634.0,0.22752]
[1764083968284,0.0115456,86654.0,86651.0,0.0115459]
[1764083968480,0.36519801,86665.0,86657.0,0.011545]
[1764083968683,0.36519801,86665.0,86648.0,0.3608]
[1764083968684,0.011545,86659.0,86658.0,0.3608]
[1764083968983,0.22,86659.0,86658.0,0.47783]
[1764083969184,0.44395,86659.0,86658.0,0.3608]
[1764083969779,0.44395,86659.0,86650.0,0.0001731]
[1764083969780,0.2354959,86651.0,86650.0,0.0001731]
[1764083969974,0.4804759,86651.0,86650.0,0.0001731]
[1764083970179,0.4804759,86651.0,86650.0,0.2276931]
[1764083970180,0.19436346,86651.0,86650.0,0.2276931]
[1764083970576,0.43,86651.0,86650.0,0.2276931]
[1764083970772,0.65395,86651.0,86650.0,0.0001731]
[1764083970976,0.43,86651.0,86650.0,0.1172031]
[1764083971577,0.65395,86651.0,86650.0,0.0001731]
[1764083971984,0.43,86651.0,86650.0,0.2276931]
[1764083972180,0.65495,86651.0,86650.0,0.0001731]
[1764083972387,0.0001731,86667.0,86664.0,0.0245242]
[1764083972683,0.0001731,86667.0,86664.0,0.99145084]
[1764083973184,0.0001731,86667.0,86664.0,0.80805084]
[1764083973376,0.0001731,86667.0,86664.0,0.98022664]
[1764083973577,0.00539801,86665.0,86664.0,0.9183]
[1764083973773,0.44539801,86665.0,86664.0,0.9183]
[1764083974172,0.44439801,86665.0,86664.0,0.9193]
[1764083974387,0.44439801,86665.0,86664.0,0.9203]
[1764083974585,0.44439801,86665.0,86664.0,0.73658]
[1764083974776,0.66834801,86665.0,86664.0,0.7236]
[1764083975281,0.66834801,86665.0,86664.0,0.001]
[1764083975485,0.235495,86658.0,86657.0,0.3608]
[1764083975677,0.655495,86658.0,86657.0,0.3608]
[1764083976080,0.2354959,86651.0,86650.0,0.0001731]
[1764083976284,0.2354973,86641.0,86640.0,0.3608]
[1764083976479,0.22395,86637.0,86636.0,0.0115478]
[1764083976687,0.10893,86634.0,86633.0,0.0115483]
[1764083976872,0.0115483,86633.0,86630.0,0.3723487]
[1764083977073,0.22395,86631.0,86630.0,0.3723487]
[1764083977276,0.22395,86631.0,86630.0,0.5560287]
[1764083977277,0.64395,86631.0,86630.0,0.5560287]
[1764083977875,0.2354995,86624.0,86623.0,0.3608]
[1764083978080,0.64395,86624.0,86623.0,0.3608]
[1764083978281,0.42,86624.0,86623.0,0.58832]
[1764083979384,0.0001731,86639.0,86624.0,0.0115494]
[1764083979582,0.011548,86636.0,86630.0,0.0115486]
[1764083979889,0.44,86636.0,86623.0,0.3618]
[1764083980087,0.44,86636.0,86624.0,0.0115495]
[1764083980391,0.22395,86632.0,86631.0,0.0115486]
[1764083980593,0.39,86632.0,86624.0,0.0125495]
[1764083980783,0.4015486,86632.0,86627.0,0.0115491]
[1764083980988,0.39,86632.0,86629.0,0.0115487]
[1764083981290,0.10893,86630.0,86625.0,0.0115493]
[1764083981483,0.49893,86630.0,86625.0,0.0115493]
[1764083981684,0.49893,86630.0,86627.0,0.011549]
[1764083982083,0.39,86630.0,86629.0,0.2157]
[1764083982287,0.39,86630.0,86624.0,0.001]
[1764083982288,0.2900794,86625.0,86624.0,0.001]
[1764083982493,0.6600794,86625.0,86624.0,0.18464]
[1764083982791,0.6600794,86625.0,86624.0,0.001]
[1764083983091,0.2263113,86611.0,86606.0,0.06192664]
[1764083983285,0.6363113,86611.0,86604.0,0.0115521]
[1764083983480,0.62476,86611.0,86605.0,0.011552]
[1764083983783,0.62476,86611.0,86608.0,0.0115516]
[1764083984580,0.0001731,86619.0,86618.0,0.2272503]
[1764083984785,0.3701731,86619.0,86618.0,0.2272503]
[1764083984992,0.0001731,86619.0,86618.0,0.4108903]
[1764083985979,0.5249031,86619.0,86615.0,0.3608]
[1764083986281,0.5249031,86619.0,86618.0,0.18364]
[1764083987287,0.21476,86616.0,86615.0,0.3608]
[1764083987592,0.66476,86616.0,86615.0,0.3608]
[1764083989396,0.2263113,86611.0,86610.0,0.00011301]
[1764083989580,0.37,86611.0,86610.0,0.39941301]
[1764083989990,0.47473,86611.0,86610.0,0.18371301]
[1764083990394,0.37,86611.0,86610.0,0.29261301]
[1764083990585,0.37,86611.0,86610.0,0.40041301]
[1764083991197,0.37,86611.0,86610.0,0.39941301]
[1764083991490,0.45,86611.0,86610.0,0.29261301]
[1764083991887,0.55473,86611.0,86610.0,0.29361301]
[1764083992282,0.66476,86611.0,86610.0,0.18471301]
[1764083992890,0.55473,86611.0,86610.0,0.18471301]
[1764083993084,0.4,86611.0,86610.0,0.24667617]
[1764083993290,0.4,86611.0,86610.0,0.30416441]
[1764083993688,0.1162807,86616.0,86615.0,0.0115507]
[1764083993888,0.0115512,86613.0,86610.0,0.18371301]
[1764083994083,0.37,86616.0,86610.0,0.18371301]
[1764083994084,0.06377,86618.0,86610.0,0.24567617]
[1764083994289,0.1162807,86616.0,86615.0,0.1204505]
[1764083994588,0.5162807,86616.0,86615.0,0.1204505]
[1764083994989,0.50473,86616.0,86615.0,0.4812505]
[1764083995798,0.61476,86616.0,86615.0,0.3608]
[1764083996400,0.50473,86616.0,86615.0,0.5765]
[1764083996901,0.50473,86616.0,86615.0,0.5775]
[1764083997600,0.61476,86616.0,86615.0,0.5890507]
[1764083997804,0.61476,86616.0,86615.0,0.5880507]
[1764083998193,0.58476,86616.0,86615.0,0.5880507]
[1764083998398,0.58476,86616.0,86615.0,0.3608]
[1764083999002,0.58476,86616.0,86615.0,0.3723507]
[1764083999709,0.58476,86616.0,86615.0,0.3608]
[1764083999998,0.23951,86613.0,86612.0,0.06196316]
[1764084000193,0.23951,86613.0,86610.0,0.18371301]
[1764084000194,0.2510613,86611.0,86610.0,0.00011301]
[1764084000400,0.60951,86611.0,86610.0,0.00011301]
[1764084001099,0.2510623,86603.0,86602.0,0.0001731]
[1764084001301,1.0618623,86603.0,86602.0,0.0001731]
[1764084001502,0.23951,86590.0,86589.0,0.06196316]
[1764084001696,0.23951,86588.0,86587.0,0.06196316]
[1764084001896,0.23951,86581.0,86580.0,0.24544316]
[1764084002098,0.64115174,86581.0,86580.0,0.24544316]
[1764084002298,0.64115174,86581.0,86580.0,0.18348]
[1764084002991,0.39008644,86581.0,86580.0,0.41611]
[1764084003198,0.39008644,86581.0,86580.0,0.47807316]
[1764084003397,0.39008644,86581.0,86580.0,0.41611]
[1764084003796,0.39008644,86581.0,86580.0,0.47168]
[1764084004001,8.644e-05,86581.0,86580.0,0.47168]
[1764084004806,0.12128644,86581.0,86580.0,0.23263]
[1764084004999,0.12128644,86581.0,86580.0,0.41611]
[1764084005195,8.644e-05,86581.0,86580.0,0.49894376]
[1764084005503,0.12128644,86581.0,86580.0,0.41611]
[1764084005806,8.644e-05,86581.0,86580.0,0.47268]
[1764084006107,8.644e-05,86581.0,86580.0,0.47368]
[1764084006306,0.00017321,86589.0,86588.0,0.2441843]
[1764084006510,0.23951,86611.0,86588.0,0.44362731]
[1764084006698,0.23951,86609.0,86608.0,0.0115515]
[1764084006898,0.23951,86609.0,86605.0,0.3608]
[1764084006899,0.23951,86606.0,86605.0,0.3608]
[1764084007095,0.2510629,86599.0,86598.0,0.3608]
[1764084007302,0.2510629,86599.0,86588.0,0.44361807]
[1764084007303,0.1212,86589.0,86588.0,0.44361807]
[1764084007509,0.1212,86589.0,86588.0,0.54428]
[1764084007510,0.0212,86589.0,86588.0,0.54428]
[1764084007701,0.0212,86589.0,86588.0,0.3608]
[1764084007901,0.4,86589.0,86588.0,0.7884643]
[1764084008107,0.1212,86595.0,86594.0,0.0115534]
[1764084008307,0.5512,86595.0,86594.0,0.0115534]
[1764084008500,0.5512,86595.0,86593.0,0.06212464]
[1764084008501,0.2510635,86594.0,86593.0,0.06212464]
[1764084008702,0.6510635,86594.0,86593.0,0.06212464]
[1764084009006,0.4,86594.0,86593.0,0.23263]
[1764084010006,0.63951,86594.0,86593.0,0.23363]
[1764084010308,0.63951,86594.0,86593.0,0.002]
[1764084010504,0.63951,86594.0,86593.0,0.06413271]
[1764084010706,1.00951,86594.0,86593.0,0.04077641]
[1764084010903,0.23951,86588.0,86587.0,0.18348]
[1764084011107,0.65951,86588.0,86587.0,0.18348]
[1764084011302,0.6710643,86588.0,86587.0,0.18348]
[1764084012107,0.2438053,86581.0,86576.0,0.3608]
[1764084012303,0.6538053,86581.0,86576.0,0.3608]
[1764084012503,0.6538053,86581.0,86578.0,0.0115556]
[1764084012705,0.6538053,86581.0,86576.0,0.3608]
[1764084013007,0.64225,86581.0,86576.0,0.3608]
[1764084013201,0.64225,86581.0,86579.0,0.0144355]
[1764084013404,0.64225,86581.0,86579.0,0.00288]
[1764084013808,0.64225,86581.0,86580.0,0.00117321]
[1764084014203,0.41,86581.0,86580.0,0.30919321]
[1764084014404,0.64225,86581.0,86580.0,0.00117321]
[1764084015319,1.00305,86581.0,86580.0,0.00117321]
[1764084015613,1.40305,86581.0,86580.0,0.00117321]
[1764084016209,1.40305,86581.0,86551.0,0.3608]
[1764084016210,0.23225,86561.0,86560.0,0.3608]
[1764084016508,0.23225,86552.0,86546.0,0.08281807]
[1764084016707,0.2438105,86542.0,86541.0,0.3608]
[1764084016912,0.67225,86542.0,86541.0,0.3608]
[1764084017114,0.67225,86542.0,86531.0,0.3608]
[1764084017115,0.23225,86539.0,86533.0,0.00017331]
[1764084017311,1.02225,86539.0,86533.0,0.00017331]
[1764084017510,1.07225,86539.0,86533.0,0.00017331]
[1764084017817,0.2438115,86534.0,86533.0,0.00017331]
[1764084018014,0.23225,86516.0,86515.0,0.0115641]
[1764084018210,0.23225,86516.0,86511.0,0.3608]
[1764084018211,0.23225,86512.0,86511.0,0.3608]
[1764084018411,0.60225,86512.0,86511.0,0.3608]
[1764084018617,0.60237208,86512.0,86511.0,0.3608]
[1764084018915,0.11832,86505.0,86504.0,0.0115655]
[1764084019108,0.48832,86505.0,86504.0,0.1338055]
[1764084019721,0.37,86505.0,86504.0,0.2496555]
[1764084019917,0.00012208,86512.0,86511.0,0.2496546]
[1764084020106,0.44012208,86512.0,86511.0,0.6104546]
[1764084020313,0.23225,86505.0,86504.0,0.0125655]
[1764084020508,0.63225,86505.0,86504.0,0.0125655]
[1764084020809,0.63225,86505.0,86504.0,0.001]
[1764084021313,0.63225,86505.0,86504.0,0.12324]
[1764084021616,0.4,86505.0,86504.0,0.23909]
[1764084021919,0.4,86505.0,86504.0,0.23809]
[1764084022307,0.63225,86505.0,86504.0,0.001]
[1764084022616,1.06225,86505.0,86504.0,0.002]
[1764084022817,0.87225,86505.0,86504.0,0.002]
[1764084023214,0.63225,86505.0,86504.0,0.002]
[1764084023611,0.99225,86505.0,86504.0,0.002]
[1764084023807,0.2438155,86504.0,86503.0,3.31e-06]
[1764084024111,0.2438155,86504.0,86484.0,0.3608]
[1764084024112,0.23225,86485.0,86484.0,0.3608]
[1764084024316,0.23225,86485.0,86484.0,0.6104582]
[1764084024317,0.30068174,86485.0,86484.0,0.6104582]
[1764084024721,0.53293174,86485.0,86484.0,0.3608]
[1764084025020,0.53293174,86485.0,86484.0,0.48304]
[1764084025217,0.53293174,86485.0,86484.0,0.3618]
[1764084025716,0.53293174,86485.0,86484.0,0.3628]
[1764084026321,0.30068174,86485.0,86484.0,0.60089]
[1764084027121,0.41900174,86485.0,86484.0,0.60089]
[1764084027516,0.53293174,86485.0,86484.0,0.3628]
[1764084029420,0.53293174,86485.0,86484.0,0.002]
[1764084029616,0.53293174,86485.0,86476.0,0.3608]
[1764084029617,0.2438192,86477.0,86476.0,0.3608]
[1764084029821,0.6638192,86477.0,86476.0,0.3608]
[1764084030119,0.65225,86477.0,86476.0,0.3608]
[1764084030723,8.174e-05,86485.0,86484.0,0.2496582]
[1764084030919,8.174e-05,86485.0,86484.0,0.6104582]
[1764084031112,0.00017342,86493.0,86492.0,0.2496572]
[1764084031309,0.50242342,86493.0,86492.0,0.3608]
[1764084031515,0.27017342,86493.0,86492.0,0.59889]
[1764084031715,0.011564,86516.0,86502.0,0.06993]
[1764084032024,0.23225,86511.0,86510.0,0.0115647]
[1764084032225,0.11832,86503.0,86502.0,0.3608]
[1764084032428,0.62225,86503.0,86502.0,0.3608]
[1764084032816,0.62225,86503.0,86502.0,0.54448]
[1764084033016,0.39,86503.0,86502.0,0.8525]
[1764084033420,0.50832,86503.0,86502.0,0.8525]
[1764084033919,0.39,86503.0,86502.0,0.8525]
[1764084034228,0.62225,86503.0,86502.0,0.54448]
[1764084034525,0.62225,86503.0,86502.0,0.18368]
[1764084034723,0.11832,86499.0,86498.0,0.12224]
[1764084034923,0.23225,86495.0,86494.0,0.00017342]
[1764084035124,0.63225,86495.0,86494.0,0.00017342]
[1764084035630,0.4,86495.0,86494.0,0.24983032]
[1764084035822,0.19,86495.0,86494.0,0.24983032]
[1764084036123,0.62225,86495.0,86494.0,0.00017342]
[1764084037624,0.23225,86484.0,86483.0,0.3608]
[1764084037815,0.66387067,86484.0,86483.0,0.3608]
[1764084038223,0.11832,86478.0,86477.0,0.18368]
[1764084038426,0.97305,86478.0,86477.0,0.18368]
[1764084038626,0.61225,86478.0,86477.0,0.18368]
[1764084038927,0.11832,86475.0,86474.0,0.3608]
[1764084039139,0.61225,86475.0,86474.0,0.3608]
[1764084039325,0.2438202,86469.0,86468.0,8.742e-05]
[1764084039517,0.6238202,86469.0,86468.0,8.742e-05]
[1764084040422,0.62387267,86469.0,86468.0,8.742e-05]
[1764084041028,0.62387267,86469.0,86468.0,0.00108742]
[1764084041716,0.62387267,86469.0,86468.0,8.742e-05]
[1764084041921,0.62487267,86469.0,86468.0,8.742e-05]
[1764084042429,0.23644,86456.0,86455.0,0.3608]
[1764084042628,0.2480129,86449.0,86448.0,0.3608]
[1764084042823,0.6180129,86449.0,86448.0,0.3608]
[1764084043128,0.2480141,86440.0,86439.0,0.3608]
[1764084043425,0.63812183,86440.0,86439.0,0.3608]
[1764084043819,0.0115754,86430.0,86429.0,0.3608]
[1764084044022,0.4115754,86430.0,86429.0,0.3608]
[1764084044217,0.4,86430.0,86429.0,0.3608]
[1764084044426,0.4,86430.0,86429.0,0.47764]
[1764084044623,0.4,86430.0,86429.0,0.59087]
[1764084044828,0.00017353,86438.0,86437.0,0.3145045]
[1764084045024,0.00017353,86438.0,86437.0,0.6753045]
[1764084045230,0.0115711,86463.0,86457.0,0.0115718]
[1764084045428,0.3915711,86463.0,86457.0,0.0115718]
[1764084045629,0.0115717,86459.0,86456.0,0.3608]
[1764084045819,0.3915717,86459.0,86456.0,0.3608]
[1764084046016,0.38,86459.0,86456.0,0.3608]
[1764084046221,0.23644,86457.0,86456.0,0.3608]
[1764084046419,0.56415,86457.0,86456.0,0.3608]
[1764084046638,0.68644,86457.0,86456.0,0.3608]
[1764084046819,0.68644,86457.0,86450.0,0.23007]
[1764084046820,0.0115723,86454.0,86450.0,0.23007]
[1764084047028,0.4615723,86454.0,86453.0,0.23007]
[1764084047223,0.4615723,86454.0,86449.0,0.00017353]
[1764084047224,0.23644,86450.0,86449.0,0.00017353]
[1764084047430,0.59644,86450.0,86449.0,0.00017353]
[1764084048130,0.59644,86450.0,86449.0,0.01174643]
[1764084048530,0.0115716,86459.0,86458.0,0.11684]
[1764084048730,0.44,86459.0,86450.0,0.07286]
[1764084049037,0.12229,86458.0,86457.0,0.0115717]
[1764084049237,0.48229,86458.0,86456.0,0.3608]
[1764084049433,0.36,86458.0,86457.0,0.23007]
[1764084049633,0.42,86458.0,86457.0,0.2416418]
[1764084049932,0.0115687,86481.0,86457.0,0.23007]
[1764084050133,0.2480118,86457.0,86456.0,0.3608]
[1764084050431,0.38,86457.0,86456.0,0.59087]
[1764084051033,0.50229,86457.0,86456.0,0.59087]
[1764084051832,0.61644,86457.0,86456.0,0.3608]
[1764084052932,0.01174413,86466.0,86465.0,0.11684]
[1764084053132,0.39174413,86466.0,86465.0,0.23007]
[1764084053330,0.51403413,86466.0,86465.0,0.23007]
[1764084053628,0.51403413,86466.0,86456.0,0.3608]
[1764084053629,0.0115717,86459.0,86458.0,0.23007]
[1764084053927,0.23644,86457.0,86456.0,0.3608]
[1764084054141,0.67644,86457.0,86456.0,0.3608]
[1764084055734,0.67644,86457.0,86449.0,0.00017353]
[1764084055933,0.2480128,86450.0,86449.0,0.00017353]
[1764084056139,0.2480128,86450.0,86440.0,0.3608]
[1764084056140,0.248014,86441.0,86440.0,0.3608]
[1764084056340,0.65022463,86441.0,86440.0,0.3608]
[1764084056539,0.0115746,86437.0,86436.0,0.23007]
[1764084056840,0.4415746,86437.0,86436.0,0.23007]
[1764084057036,0.43,86437.0,86436.0,0.23007]
[1764084057236,0.4415745,86437.0,86436.0,0.23007]
[1764084058235,0.2480149,86434.0,86433.0,0.18376]
[1764084058436,0.6680149,86434.0,86433.0,0.18376]
[1764084059236,0.6680149,86434.0,86433.0,0.18476]
[1764084059638,0.6680149,86434.0,86433.0,0.18576]
[1764084059842,0.6680149,86434.0,86433.0,0.002]
[1764084060238,0.0115774,86416.0,86415.0,0.23415]
[1764084060443,0.22768,86415.0,86414.0,0.3608]
[1764084060743,0.38,86415.0,86414.0,0.59495]
[1764084060938,0.00017353,86424.0,86423.0,0.23415]
[1764084061138,0.61785353,86424.0,86423.0,0.3608]
[1764084061338,0.22768,86422.0,86421.0,0.1838]
[1764084061538,0.61768,86422.0,86421.0,0.1838]
[1764084061744,0.11221,86415.0,86414.0,0.3608]
[1764084061947,0.11221,86415.0,86389.0,0.3608]
[1764084061948,0.0609591,86403.0,86389.0,0.3608]
[1764084062148,0.5109591,86403.0,86389.0,0.3608]
[1764084062538,0.8909591,86403.0,86389.0,0.3608]
[1764084062734,0.8909591,86403.0,86402.0,0.00161428]
[1764084063250,0.5109591,86403.0,86402.0,0.00161428]
[1764084063947,0.5109591,86403.0,86402.0,0.00361428]
[1764084064145,0.45,86403.0,86402.0,0.23776428]
[1764084064444,0.45,86403.0,86402.0,0.23576428]
[1764084064644,0.3723772,86417.0,86416.0,0.23415]
[1764084064948,0.8008,86417.0,86416.0,0.23415]
[1764084065148,0.8008,86417.0,86408.0,0.07131]
[1764084065346,0.0115781,86411.0,86410.0,0.23415]
[1764084065546,0.3608,86417.0,86416.0,0.23415]
[1764084065748,0.7308,86417.0,86416.0,0.23415]
[1764084066044,0.00017353,86424.0,86423.0,0.23415]
[1764084066248,0.39017353,86424.0,86423.0,0.23415]
[1764084067349,0.0362664,86423.0,86422.0,0.07131]
[1764084067538,0.0362664,86423.0,86422.0,0.19367]
[1764084067539,0.4662664,86423.0,86422.0,0.19367]
[1764084067740,0.43,86423.0,86422.0,0.30546]
[1764084069749,0.00117353,86424.0,86423.0,0.2457264]
[1764084070049,0.03117353,86424.0,86423.0,0.2457264]
[1764084070238,0.03017353,86424.0,86423.0,0.2457264]
[1764084070436,0.3608,86447.0,86442.0,0.23415]
[1764084070639,0.3608,86447.0,86443.0,0.23415]
[1764084070640,0.1237836,86444.0,86443.0,0.23415]
[1764084070840,0.27,86444.0,86443.0,0.23415]
[1764084071848,0.001,86447.0,86446.0,0.2449833]
[1764084072054,0.00017353,86452.0,86451.0,0.2449826]
[1764084072352,0.00017353,86452.0,86451.0,0.59421]
[1764084072554,0.00017353,86452.0,86451.0,0.23341]
[1764084072754,0.43017353,86452.0,86451.0,0.23341]
[1764084072942,0.01017353,86452.0,86451.0,0.23341]
[1764084073143,0.3608,86466.0,86465.0,0.23341]
[1764084073851,0.38,86466.0,86465.0,0.23341]
[1764084074043,0.0115697,86473.0,86472.0,0.23341]
[1764084074240,0.6718297,86473.0,86464.0,0.43423353]
[1764084074445,0.2518308,86465.0,86464.0,0.00017353]
[1764084074750,0.6618308,86465.0,86464.0,0.00017353]
[1764084075146,0.3608,86474.0,86464.0,0.30684353]
[1764084075339,0.7423696,86474.0,86473.0,0.23341]
[1764084075849,0.1297308,86465.0,86464.0,0.23358353]
[1764084076046,0.1297308,86465.0,86464.0,0.00017353]
[1764084076047,1.0026308,86465.0,86464.0,0.00017353]
[1764084076753,0.99206,86465.0,86464.0,0.00017353]
[1764084077743,0.99106,86465.0,86464.0,0.00017353]
[1764084077944,1.41106,86465.0,86464.0,0.00017353]
[1764084078156,0.5508,86465.0,86464.0,0.23358353]
[1764084078449,0.84996,86465.0,86464.0,0.11867353]
[1764084078645,0.97206,86465.0,86464.0,0.00017353]
[1764084080043,1.03206,86465.0,86464.0,0.00017353]
[1764084080243,1.40206,86465.0,86464.0,0.00017353]
[1764084080446,1.03206,86465.0,86464.0,0.00017353]
[1764084080745,1.41206,86465.0,86464.0,0.00017353]
[1764084080952,1.41106,86465.0,86464.0,3.53e-06]
[1764084081151,1.41206,86465.0,86464.0,3.53e-06]
[1764084081455,1.03206,86465.0,86464.0,3.53e-06]
[1764084081750,1.40206,86465.0,86464.0,3.53e-06]
[1764084081952,1.03206,86465.0,86464.0,3.53e-06]
[1764084082157,1.03206,86465.0,86464.0,0.59421353]
[1764084082158,0.001,86465.0,86464.0,0.59421353]